bitfinex-derivatives/quotes_SOLF0:USTF0_20250311
["timestamp","ask_amount","ask_price","bid_price","bid_amount"]
[1741732443437,0.05617868,126.17,126.15,0.05844597]
[1741732443738,0.05617868,126.17,126.15,7.98684597]
[1741732444349,0.05617868,126.17,126.16,7.9278]
[1741732447036,0.05617868,126.17,126.15,0.05844597]
[1741732447241,0.05617868,126.17,126.15,7.98664597]
[1741732447440,7.98347868,126.17,126.15,0.05844597]
[1741732447637,0.05617868,126.17,126.15,0.05844597]
[1741732448040,7.9278,126.16,126.15,0.05844597]
[1741732448232,20.36727797,126.16,126.09,265.9204]
[1741732448435,20.36727797,126.14,126.09,261.6]
[1741732448641,29.94,126.13,126.09,261.6]
[1741732449339,0.05222353,126.12,126.1,0.05072415]
[1741732449742,0.05222353,126.12,126.1,7.98202415]
[1741732449931,0.05222353,126.12,126.1,0.05072415]
[1741732450346,0.05222353,126.12,126.11,7.931]
[1741732453444,0.05222353,126.12,126.1,9.98682415]
[1741732463449,0.05222353,126.12,126.1,2.05552415]
[1741732463645,0.05222353,126.12,126.11,7.931]
[1741732465146,37.8675,126.17,126.14,7.9286]
[1741732465341,7.9275,126.17,126.14,7.9286]
[1741732466149,7.9279,126.16,126.14,7.9286]
[1741732466348,7.9279,126.16,126.14,7.98289929]
[1741732467047,7.98840103,126.17,126.15,7.9284]
[1741732467250,0.06090103,126.17,126.14,0.05429929]
[1741732468155,0.06090103,126.17,126.16,7.9278]
[1741732469153,0.06090103,126.17,126.15,7.9281]
[1741732469957,0.06090103,126.17,126.14,0.05429929]
[1741732470452,7.9284,126.15,126.14,0.05429929]
[1741732470858,37.8681,126.16,126.14,0.05429929]
[1741732474256,37.8681,126.16,126.14,7.98329929]
[1741732474659,7.9284,126.15,126.14,0.05429929]
[1741732474864,50.30727797,126.16,126.1,11.951]
[1741732475162,50.30727797,126.16,126.09,291.54]
[1741732475163,7.931,126.11,126.09,261.6]
[1741732475659,29.94,126.13,126.06,2.0133]
[1741732475852,20.36727797,126.1,126.04,2.1163]
[1741732476056,29.94,126.09,126.04,2.1163]
[1741732476252,7.9343,126.06,126.03,555.64819426]
[1741732476562,7.9343,126.06,126.03,547.71249426]
[1741732476763,29.94,126.06,126.03,286.05249426]
[1741732477065,50.30727797,126.06,126.03,286.05249426]
[1741732477355,50.36536629,126.06,126.03,286.1085407]
[1741732477662,29.99808832,126.06,126.03,0.05604644]
[1741732477853,29.99808832,126.06,126.03,7.99164644]
[1741732478963,29.99808832,126.06,126.03,0.05604644]
[1741732479263,0.05808832,126.06,126.03,0.05604644]
[1741732479665,0.05808832,126.06,126.05,7.9347]
[1741732480462,0.05808832,126.06,126.03,0.05604644]
[1741732480762,0.05808832,126.06,126.04,7.9352]
[1741732482166,0.05808832,126.06,126.04,7.9354]
[1741732482367,0.05808832,126.06,126.03,0.05604644]
[1741732482566,0.05808832,126.06,126.05,7.9347]
[1741732483560,0.05808832,126.06,126.03,0.05604644]
[1741732484168,7.99228832,126.06,126.03,7.99174644]
[1741732484562,0.05808832,126.06,126.03,0.05604644]
[1741732485058,0.05808832,126.06,126.03,2.12624644]
[1741732485758,0.05808832,126.06,126.05,7.9347]
[1741732487564,2.1774,126.12,126.04,2.0102]
[1741732487770,20.36727797,126.13,126.05,29.94]
[1741732488358,20.36727797,126.11,126.05,29.94]
[1741732488569,7.9337,126.07,126.04,2.0102]
[1741732489069,7.9337,126.07,126.04,2.06988702]
[1741732491069,7.9337,126.07,126.04,10.00478702]
[1741732491266,7.9337,126.07,126.04,2.06988702]
[1741732492866,7.9337,126.07,126.05,7.9346]
[1741732493365,0.05927436,126.09,126.04,2.06988702]
[1741732493566,29.94,126.08,126.04,0.05968702]
[1741732493772,20.36727797,126.07,126.04,0.05968702]
[1741732495269,20.36727797,126.05,125.97,261.66]
[1741732495472,20.36727797,126.02,125.97,261.66]
[1741732495669,37.8776,126.01,125.97,261.66]
[1741732495872,37.8776,126.01,125.97,269.5994]
[1741732496461,0.05397489,126.0,125.98,0.05226652]
[1741732497070,0.05397489,126.0,125.99,7.9385]
[1741732497465,0.05397489,126.0,125.98,0.05226652]
[1741732497664,7.99247489,126.0,125.98,0.05226652]
[1741732497869,0.05397489,126.0,125.98,0.05226652]
[1741732498371,7.99217489,126.0,125.98,0.05226652]
[1741732498761,0.05397489,126.0,125.98,0.05226652]
[1741732499371,0.05397489,126.0,125.99,7.9385]
[1741732500474,29.96,126.04,125.98,2.08046652]
[1741732500676,50.32727797,126.04,125.98,0.05226652]
[1741732501172,7.937,126.02,125.98,7.99096652]
[1741732501570,7.937,126.02,125.99,7.9385]
[1741732501571,0.06022769,126.01,125.99,7.9385]
[1741732502074,0.06022769,126.01,125.98,0.05226652]
[1741732502269,7.99762769,126.01,125.98,7.99106652]
[1741732502670,7.9385,125.99,125.98,0.05226652]
[1741732503175,30.02022769,126.01,125.98,0.05226652]
[1741732503376,7.9382,126.0,125.98,0.05226652]
[1741732504574,7.9385,125.99,125.98,0.05226652]
[1741732505078,7.9379,126.0,125.98,0.05226652]
[1741732505576,30.02022769,126.01,125.98,0.05226652]
[1741732505976,20.36727797,126.0,125.94,4.1378]
[1741732506176,20.36727797,125.98,125.91,261.92]
[1741732506373,7.9418,125.94,125.91,269.8633]
[1741732506875,20.36727797,125.96,125.9,7.9437]
[1741732507073,20.36727797,125.96,125.87,50.32727797]
[1741732507277,0.06080826,125.94,125.92,0.05535839]
[1741732509079,30.02080826,125.94,125.92,0.05535839]
[1741732509784,0.06080826,125.94,125.92,0.05535839]
[1741732510179,8.00250826,125.94,125.92,0.05535839]
[1741732510477,29.96,125.93,125.85,261.92]
[1741732510683,28.31127797,125.91,125.86,7.9462]
[1741732511183,7.944,125.91,125.86,7.9462]
[1741732511676,0.05198234,125.9,125.87,0.05457501]
[1741732512476,0.05198234,125.9,125.87,8.00017501]
[1741732513275,0.05198234,125.9,125.87,0.05457501]
[1741732514477,0.05198234,125.9,125.89,7.9448]
[1741732515081,0.05198234,125.9,125.87,0.05457501]
[1741732516185,7.9452,125.89,125.87,0.05457501]
[1741732518289,0.05198234,125.9,125.87,0.05457501]
[1741732518893,0.05198234,125.9,125.89,7.9448]
[1741732519891,0.05198234,125.9,125.87,0.05457501]
[1741732520286,0.05198234,125.9,125.88,7.9451]
[1741732520585,0.05198234,125.9,125.87,0.05457501]
[1741732520791,0.05198234,125.9,125.88,7.945]
[1741732520992,0.05198234,125.9,125.87,0.05457501]
[1741732521393,0.05198234,125.9,125.88,7.9455]
[1741732521593,0.05198234,125.9,125.87,0.05457501]
[1741732522195,0.05198234,125.9,125.88,7.9454]
[1741732522495,0.05198234,125.9,125.87,0.05457501]
[1741732522694,0.05198234,125.9,125.89,7.9448]
[1741732526998,29.98,125.96,125.88,50.34727797]
[1741732527205,20.36727797,125.95,125.86,20.36727797]
[1741732527500,7.9445,125.9,125.87,7.9457]
[1741732527694,7.9445,125.9,125.85,291.9]
[1741732528096,0.05362967,125.89,125.86,0.058714]
[1741732528790,50.40090764,125.89,125.86,0.058714]
[1741732528995,50.40090764,125.89,125.81,2.0381]
[1741732529198,50.34727797,125.89,125.81,2.0381]
[1741732529603,20.36727797,125.87,125.81,2.0381]
[1741732529905,29.98,125.86,125.81,2.0381]
[1741732530102,0.05459293,125.85,125.83,0.05293087]
[1741732530504,20.4218709,125.85,125.83,0.05293087]
[1741732530698,7.948,125.84,125.83,0.05293087]
[1741732530893,20.4218709,125.85,125.83,0.05293087]
[1741732531095,0.05459293,125.85,125.83,0.05293087]
[1741732531291,0.05459293,125.85,125.83,8.00153087]
[1741732531599,0.05459293,125.85,125.83,0.05293087]
[1741732531801,28.31127797,125.91,125.86,7.9462]
[1741732532006,20.36727797,125.91,125.86,7.9462]
[1741732532307,20.36727797,125.91,125.84,29.98]
[1741732533003,0.05682856,125.89,125.86,0.05861108]
[1741732533204,8.00202856,125.89,125.86,0.05861108]
[1741732534305,0.05682856,125.89,125.86,0.05861108]
[1741732535006,0.05682856,125.89,125.87,7.9455]
[1741732535302,0.05682856,125.89,125.86,30.03861108]
[1741732535604,0.05682856,125.89,125.87,7.9458]
[1741732536304,0.05682856,125.89,125.86,8.00501108]
[1741732536704,0.05682856,125.89,125.86,0.05861108]
[1741732537394,0.05682856,125.89,125.86,8.00521108]
[1741732538503,8.00172856,125.89,125.86,0.05861108]
[1741732538902,8.00172856,125.89,125.86,8.00521108]
[1741732540902,0.05682856,125.89,125.88,7.9455]
[1741732541297,0.05682856,125.89,125.86,2.17741108]
[1741732541501,7.9459,125.88,125.86,0.05861108]
[1741732541908,7.9461,125.87,125.86,0.05861108]
[1741732542603,7.9461,125.88,125.86,0.05861108]
[1741732543003,0.05682856,125.89,125.86,0.05861108]
[1741732544602,0.05682856,125.89,125.87,7.9461]
[1741732544813,0.05682856,125.89,125.86,0.05861108]
[1741732545311,7.946,125.88,125.86,0.05861108]
[1741732545506,0.05682856,125.89,125.86,0.05861108]
[1741732545901,7.9455,125.88,125.86,0.05861108]
[1741732547113,20.42410653,125.89,125.86,0.05861108]
[1741732547315,7.9461,125.87,125.86,0.05861108]
[1741732547614,20.36727797,125.87,125.78,19.01578393]
[1741732547815,20.36727797,125.87,125.81,7.9496]
[1741732548019,29.98,125.86,125.8,32.0993]
[1741732548509,29.98,125.86,125.78,23.10328393]
[1741732548714,0.05435187,125.84,125.82,0.05745899]
[1741732549817,7.9486,125.83,125.82,0.05745899]
[1741732550313,0.05435187,125.84,125.82,0.05745899]
[1741732551220,0.05435187,125.84,125.82,8.00635899]
[1741732555216,0.05435187,125.84,125.82,0.05745899]
[1741732555818,0.05435187,125.84,125.83,7.9486]
[1741732556314,20.36727797,125.89,125.85,7.947]
[1741732556518,20.36727797,125.89,125.83,1.9937]
[1741732556915,20.36727797,125.89,125.81,30.0]
[1741732557116,7.9478,125.85,125.81,30.0]
[1741732557318,0.05980573,125.86,125.84,0.05294102]
[1741732557623,50.38727797,125.87,125.82,7.949]
[1741732557823,0.05139197,125.86,125.82,7.949]
[1741732558118,0.05139197,125.86,125.83,8.00255079]
[1741732559215,7.99829197,125.86,125.84,7.948]
[1741732559515,7.99829197,125.86,125.83,0.05445079]
[1741732559720,7.99829197,125.86,125.83,8.00275079]
[1741732559924,0.05139197,125.86,125.83,0.05445079]
[1741732560312,0.05139197,125.86,125.84,7.9476]
[1741732560717,7.99819197,125.86,125.84,7.9476]
[1741732561313,0.05139197,125.86,125.83,0.05445079]
[1741732562214,13.14886835,125.86,125.83,0.05445079]
[1741732562424,21.09596835,125.86,125.84,7.9476]
[1741732562926,21.09596835,125.86,125.83,0.05445079]
[1741732563220,7.9478,125.85,125.83,8.00275079]
[1741732563426,7.9478,125.85,125.83,0.05445079]
[1741732564127,21.09586835,125.86,125.84,7.9477]
[1741732564822,13.14886835,125.86,125.83,8.00265079]
[1741732565019,7.9476,125.85,125.83,8.00265079]
[1741732565225,13.14886835,125.86,125.83,0.05445079]
[1741732565520,21.09596835,125.86,125.84,7.9477]
[1741732566119,13.14886835,125.86,125.84,7.9477]
[1741732567023,13.14886835,125.86,125.83,0.05445079]
[1741732568227,7.9478,125.85,125.83,8.00275079]
[1741732568827,7.948,125.84,125.83,0.05445079]
[1741732569230,21.04547638,125.84,125.83,0.05445079]
[1741732569624,7.9504,125.81,125.77,2.0078]
[1741732569836,13.09747638,125.79,125.74,4.1255]
[1741732570023,13.09747638,125.79,125.75,15.10527638]
[1741732570434,21.04787638,125.81,125.75,15.10527638]
[1741732570633,13.09747638,125.81,125.77,13.09747638]
[1741732570834,0.05942739,125.79,125.77,43.15805777]
[1741732571034,21.04607638,125.83,125.8,7.95]
[1741732571234,13.09747638,125.83,125.8,7.95]
[1741732571831,7.9496,125.82,125.77,43.09747638]
[1741732572027,13.09747638,125.83,125.77,43.09747638]
[1741732572232,0.05669656,125.81,125.78,0.05881461]
[1741732572732,0.05669656,125.81,125.8,7.9505]
[1741732573236,28.42590068,125.84,125.81,7.9493]
[1741732573431,50.47760068,125.86,125.8,30.0]
[1741732573636,30.0,125.86,125.8,30.0]
[1741732573842,37.947,125.86,125.83,7.9483]
[1741732574230,38.00351921,125.86,125.83,8.00723915]
[1741732574439,0.05651921,125.86,125.84,7.9479]
[1741732575035,8.00331921,125.86,125.84,7.9479]
[1741732575744,0.05651921,125.86,125.84,7.9479]
[1741732576548,8.00361921,125.86,125.83,8.00713915]
[1741732577544,7.9475,125.85,125.83,8.00713915]
[1741732578744,0.05651921,125.86,125.83,0.05893915]
[1741732578943,0.05651921,125.86,125.84,7.9475]
[1741732579341,0.05651921,125.86,125.83,0.05893915]
[1741732579945,7.9477,125.85,125.83,0.05893915]
[1741732580146,0.05651921,125.86,125.83,0.05893915]
[1741732581138,7.9477,125.85,125.83,0.05893915]
[1741732582145,0.05651921,125.86,125.83,0.05893915]
[1741732582346,28.42560068,125.84,125.83,0.05893915]
[1741732584445,7.948,125.84,125.83,0.05893915]
[1741732584948,50.53411989,125.86,125.83,0.05893915]
[1741732585252,7.9476,125.85,125.83,0.05893915]
[1741732585451,50.53411989,125.86,125.83,0.05893915]
[1741732585651,7.948,125.84,125.83,0.05893915]
[1741732587553,20.47760068,125.84,125.79,264.4036]
[1741732587754,7.9502,125.81,125.79,264.4036]
[1741732588052,20.47760068,125.82,125.78,2.1974]
[1741732588448,7.9507,125.8,125.78,2.1974]
[1741732588748,0.05239888,125.8,125.78,2.25843308]
[1741732588950,0.05239888,125.8,125.79,7.9511]
[1741732590157,30.0,125.83,125.81,7.9495]
[1741732590450,30.0,125.83,125.78,2.1974]
[1741732591255,0.05402497,125.82,125.81,7.9494]
[1741732594262,30.0,125.85,125.83,7.948]
[1741732594460,20.47760068,125.86,125.83,7.948]
[1741732594768,20.47760068,125.86,125.8,2.0026]
[1741732595263,7.9489,125.83,125.81,7.9496]
[1741732595563,7.9489,125.83,125.82,0.05426123]
[1741732596369,21.05464203,125.83,125.82,0.05426123]
[1741732598067,13.10574203,125.83,125.82,8.00346123]
[1741732598264,13.10574203,125.83,125.82,0.05426123]
[1741732598869,21.05434203,125.83,125.82,0.05426123]
[1741732601271,13.10574203,125.83,125.82,0.05426123]
[1741732602163,13.10574203,125.83,125.82,8.00346123]
[1741732603472,30.05539294,125.84,125.83,7.9486]
[1741732603672,0.05539294,125.84,125.83,7.9486]
[1741732606176,13.10574203,125.89,125.83,13.10574203]
[1741732606378,13.10574203,125.89,125.83,17.48354203]
[1741732606577,13.10574203,125.89,125.87,7.9458]
[1741732606878,13.10574203,125.89,125.85,43.10574203]
[1741732607174,0.02064082,125.88,125.87,7.9461]
[1741732607972,13.10574203,125.91,125.89,7.9442]
[1741732608178,21.04954203,125.91,125.85,43.10574203]
[1741732608876,13.10574203,125.91,125.87,0.05097467]
[1741732609175,13.10574203,125.91,125.88,7.9453]
[1741732609677,7.9442,125.9,125.87,7.99667467]
[1741732609876,7.9442,125.9,125.87,0.05097467]
[1741732610080,21.05094203,125.89,125.87,0.05097467]
[1741732610374,13.10574203,125.91,125.87,0.05097467]
[1741732610678,13.10574203,125.91,125.88,0.05588636]
[1741732611080,21.04964203,125.91,125.88,8.00108636]
[1741732611680,13.10574203,125.91,125.89,7.9448]
[1741732611875,13.10574203,125.93,125.88,0.05588636]
[1741732612275,30.0,125.95,125.88,43.16162839]
[1741732612276,21.04774203,125.94,125.88,43.16162839]
[1741732612473,13.10574203,125.94,125.88,43.16162839]
[1741732612776,7.9426,125.93,125.9,7.9439]
[1741732613278,7.9426,125.93,125.9,8.00081462]
[1741732613479,21.04774203,125.94,125.91,7.9435]
[1741732613983,13.10574203,125.94,125.91,7.9435]
[1741732614180,13.10574203,125.94,125.92,7.9429]
[1741732614380,13.10574203,125.94,125.9,0.05691462]
[1741732614885,21.04754203,125.94,125.91,7.9432]
[1741732615878,13.10574203,125.94,125.9,13.16265665]
[1741732616081,13.10574203,125.94,125.92,7.9426]
[1741732616481,21.04774203,125.94,125.91,7.9433]
[1741732617387,13.10574203,125.94,125.91,7.9433]
[1741732617591,13.10574203,125.94,125.9,0.05691462]
[1741732617990,7.9435,125.92,125.9,0.05691462]
[1741732618890,7.9436,125.91,125.9,0.05691462]
[1741732621690,7.9465,125.87,125.85,262.28]
[1741732621987,13.10574203,125.91,125.86,13.10574203]
[1741732622191,13.10574203,125.91,125.88,7.945]
[1741732622593,13.10574203,125.91,125.86,13.10574203]
[1741732622892,0.05345961,125.9,125.87,0.05180886]
[1741732623092,13.15920164,125.9,125.87,0.05180886]
[1741732624298,7.9455,125.88,125.87,0.05180886]
[1741732625691,0.05345961,125.9,125.87,0.05180886]
[1741732626098,13.10574203,125.89,125.87,0.05180886]
[1741732626297,21.05124203,125.88,125.87,0.05180886]
[1741732628198,7.9477,125.85,125.83,2.1897]
[1741732628398,21.05344203,125.85,125.83,2.1897]
[1741732628796,13.10574203,125.86,125.83,2.1897]
[1741732628997,21.05244203,125.87,125.83,2.1897]
[1741732629193,13.10574203,125.86,125.82,2.0305]
[1741732629400,7.9473,125.85,125.84,0.05357847]
[1741732629989,21.05304203,125.85,125.84,0.05357847]
[1741732631802,51.08392737,125.86,125.84,0.05357847]
[1741732632005,43.13712737,125.86,125.84,0.05357847]
[1741732632894,51.08422737,125.86,125.84,0.05357847]
[1741732633204,43.13712737,125.86,125.84,0.05357847]
[1741732633402,7.9473,125.85,125.84,0.05357847]
[1741732634517,21.10412737,125.86,125.84,0.05357847]
[1741732634706,0.05138534,125.86,125.84,8.00117847]
[1741732635804,7.99808534,125.86,125.84,8.00117847]
[1741732636004,7.99808534,125.86,125.84,0.05357847]
[1741732636207,0.05138534,125.86,125.84,0.05357847]
[1741732636403,7.9473,125.85,125.84,0.05357847]
[1741732636608,0.05138534,125.86,125.84,0.05357847]
[1741732637311,7.99848534,125.86,125.84,0.05357847]
[1741732639113,7.99848534,125.86,125.84,8.00147847]
[1741732639614,7.99848534,125.86,125.84,0.05357847]
[1741732640111,0.05138534,125.86,125.84,0.05357847]
[1741732640812,7.99848534,125.86,125.84,0.05357847]
[1741732643217,7.9473,125.85,125.84,0.05357847]
[1741732643818,21.05304203,125.85,125.84,0.05357847]
[1741732646013,13.10574203,125.85,125.84,0.05357847]
[1741732646822,13.10574203,125.85,125.84,8.00157847]
[1741732647119,13.10574203,125.85,125.84,0.05357847]
[1741732647420,21.05304203,125.85,125.84,0.05357847]
[1741732648023,7.99838534,125.86,125.84,0.05357847]
[1741732648222,7.99838534,125.86,125.84,8.00127847]
[1741732650626,0.05138534,125.86,125.84,0.05357847]
[1741732650821,0.05138534,125.86,125.85,7.9473]
[1741732651120,0.05138534,125.86,125.84,0.05357847]
[1741732651324,7.99808534,125.86,125.84,8.00127847]
[1741732653925,0.05138534,125.86,125.84,8.00127847]
[1741732654123,0.05138534,125.86,125.85,7.9473]
[1741732656524,0.05138534,125.86,125.85,23.11664203]
[1741732656725,13.10574203,125.91,125.85,15.16934203]
[1741732656925,13.10574203,125.91,125.87,13.10574203]
[1741732657827,0.05733815,125.9,125.89,7.9445]
[1741732658822,0.05733815,125.9,125.88,7.99820163]
[1741732659019,0.05733815,125.9,125.88,0.05310163]
[1741732659226,8.00183815,125.9,125.88,0.05310163]
[1741732662531,8.00183815,125.9,125.88,7.99850163]
[1741732664736,0.05733815,125.9,125.88,7.99850163]
[1741732667337,8.00183815,125.9,125.88,7.99850163]
[1741732668240,8.00193815,125.9,125.88,0.05310163]
[1741732672043,7.9448,125.89,125.88,0.05310163]
[1741732672243,43.08574203,125.89,125.85,2.0636]
[1741732672838,7.9467,125.86,125.85,2.0636]
[1741732673941,0.05242268,125.87,125.85,2.0636]
[1741732674543,0.05242268,125.87,125.85,15.16934203]
[1741732674948,0.05242268,125.87,125.86,7.9467]
[1741732690359,0.05242268,125.87,125.85,2.0636]
[1741732690563,0.05242268,125.87,125.84,15.2566828]
[1741732690761,0.05242268,125.87,125.84,2.15094077]
[1741732690960,7.947,125.86,125.84,10.09864077]
[1741732691360,0.05242268,125.87,125.84,2.15094077]
[1741732691555,0.05242268,125.87,125.86,7.9467]
[1741732699069,0.05242268,125.87,125.86,21.05244203]
[1741732699665,0.05242268,125.87,125.86,7.9467]
[1741732704670,0.05242268,125.87,125.86,21.05244203]
[1741732711776,29.98,125.9,125.86,13.10574203]
[1741732711978,37.9032,125.92,125.86,13.10574203]
[1741732712274,29.96,125.94,125.9,13.10574203]
[1741732712668,37.902,125.94,125.91,7.9434]
[1741732713068,30.01620008,125.94,125.91,0.05066729]
[1741732713271,0.05620008,125.94,125.92,13.10574203]
[1741732713470,0.05620008,125.94,125.93,13.10574203]
[1741732713669,0.05620008,125.94,125.93,21.04804203]
[1741732713976,0.05620008,125.94,125.93,13.10574203]
[1741732714174,0.05620008,125.94,125.91,13.15640932]
[1741732714371,7.9426,125.93,125.91,0.05066729]
[1741732714774,7.99820008,125.94,125.91,0.05066729]
[1741732714975,7.99820008,125.94,125.91,13.15640932]
[1741732715977,7.9427,125.93,125.91,13.15640932]
[1741732716270,7.9427,125.93,125.91,0.05066729]
[1741732716867,0.05620008,125.94,125.91,0.05066729]
[1741732717068,7.99830008,125.94,125.91,0.05066729]
[1741732717267,7.99830008,125.94,125.91,13.15640932]
[1741732717469,0.05620008,125.94,125.91,13.15640932]
[1741732718271,7.99820008,125.94,125.91,13.15640932]
[1741732718881,7.99820008,125.94,125.91,21.09960932]
[1741732719181,0.05620008,125.94,125.92,13.10574203]
[1741732719378,0.05620008,125.94,125.91,0.05066729]
[1741732719379,0.05620008,125.94,125.93,13.10574203]
[1741732719779,7.99790008,125.94,125.93,13.10574203]
[1741732720173,0.05620008,125.94,125.91,30.01066729]
[1741732720375,0.05620008,125.94,125.91,0.05066729]
[1741732720771,13.16194211,125.94,125.91,0.05066729]
[1741732720976,7.9429,125.92,125.91,0.05066729]
[1741732721681,21.04864203,125.92,125.91,6.729e-05]
[1741732722983,15.48574203,125.92,125.83,275.20574203]
[1741732723184,13.10574203,125.89,125.84,13.10574203]
[1741732723383,13.10574203,125.89,125.85,7.947]
[1741732723384,51.01084203,125.89,125.85,7.947]
[1741732723578,43.06574203,125.89,125.84,13.10574203]
[1741732724083,0.0593059,125.88,125.86,7.9467]
[1741732727487,0.0593059,125.88,125.85,0.05365613]
[1741732727686,0.0593059,125.88,125.87,7.9461]
[1741732728086,0.0593059,125.88,125.86,7.9464]
[1741732728284,0.0593059,125.88,125.85,0.05365613]
[1741732728881,8.0052059,125.88,125.85,8.00065613]
[1741732729289,13.10574203,125.87,125.85,0.05365613]
[1741732729588,7.9467,125.86,125.85,0.05365613]
[1741732733883,0.0593059,125.88,125.85,0.05365613]
[1741732735084,0.0593059,125.88,125.87,7.9461]
[1741732736490,0.0593059,125.88,125.87,21.05184203]
[1741732737390,29.96,125.92,125.87,13.10574203]
[1741732737688,29.96,125.92,125.9,7.9437]
[1741732737985,37.903,125.92,125.89,7.9445]
[1741732738691,37.95237849,125.92,125.89,8.00300733]
[1741732738988,43.11512052,125.92,125.89,0.05850733]
[1741732739387,13.10574203,125.9,125.89,0.05850733]
[1741732739593,21.04994203,125.9,125.89,0.05850733]
[1741732740289,7.9439,125.91,125.89,0.05850733]
[1741732740792,37.95257849,125.92,125.89,8.00280733]
[1741732741191,30.00937849,125.92,125.89,0.05850733]
[1741732741491,0.04937849,125.92,125.91,7.9436]
[1741732742789,0.04937849,125.92,125.9,7.9438]
[1741732742985,0.04937849,125.92,125.89,13.16424936]
[1741732743394,0.04937849,125.92,125.91,7.9436]
[1741732744993,0.04937849,125.92,125.9,7.9439]
[1741732745496,7.99267849,125.92,125.9,7.9439]
[1741732745891,0.04937849,125.92,125.9,7.9439]
[1741732746195,0.04937849,125.92,125.91,7.9436]
[1741732747394,0.04937849,125.92,125.89,13.16424936]
[1741732747395,7.99237849,125.92,125.9,7.9439]
[1741732747896,7.99237849,125.92,125.89,21.10874936]
[1741732748092,7.9436,125.91,125.89,8.00300733]
[1741732748795,7.9442,125.9,125.89,0.05850733]
[1741732750396,13.10574203,125.9,125.84,17.25284203]
[1741732750696,13.10574203,125.89,125.84,17.25284203]
[1741732750890,43.04574203,125.91,125.84,17.25284203]
[1741732751097,43.04574203,125.91,125.86,13.10574203]
[1741732751695,8.00525099,125.9,125.87,8.00254702]
[1741732752993,7.9449,125.89,125.87,8.00254702]
[1741732753191,7.9449,125.89,125.87,0.05694702]
[1741732753387,13.16659302,125.9,125.87,0.05694702]
[1741732754191,13.10574203,125.88,125.83,262.1]
[1741732754391,13.10574203,125.86,125.83,262.1]
[1741732755494,7.9475,125.85,125.83,262.15300831]
[1741732756097,13.10574203,125.84,125.8,17.27194203]
[1741732756499,7.9487,125.83,125.81,7.9498]
[1741732757000,7.9487,125.83,125.8,25.22214203]
[1741732757407,8.00791711,125.83,125.8,25.27876808]
[1741732757889,8.00791711,125.83,125.8,0.05662605]
[1741732757890,7.9499,125.81,125.8,0.05662605]
[1741732758296,21.05564203,125.81,125.8,0.05662605]
[1741732758496,51.01564203,125.81,125.8,0.05662605]
[1741732759791,7.9518,125.78,125.76,2.0204]
[1741732760403,21.05754203,125.78,125.75,7.9534]
[1741732760803,21.05844203,125.77,125.74,7.9542]
[1741732760998,13.10574203,125.77,125.75,0.06045542]
[1741732761404,43.12063109,125.78,125.75,0.06045542]
[1741732761904,43.12063109,125.78,125.75,8.01375542]
[1741732762205,43.12063109,125.78,125.75,0.06045542]
[1741732762407,51.07273109,125.78,125.75,8.01375542]
[1741732762696,0.05488906,125.78,125.75,0.06045542]
[1741732762902,0.05488906,125.78,125.76,13.10574203]
[1741732763101,21.11273109,125.78,125.75,0.06045542]
[1741732763699,43.06574203,125.77,125.75,0.06045542]
[1741732764404,43.06574203,125.77,125.75,8.01415542]
[1741732765102,29.96,125.77,125.75,8.01385542]
[1741732765405,0.05488906,125.78,125.75,0.06045542]
[1741732766004,0.05488906,125.78,125.76,13.10574203]
[1741732766508,0.05488906,125.78,125.75,13.16619745]
[1741732766902,0.05488906,125.78,125.77,7.9524]
[1741732771101,0.05488906,125.78,125.75,0.06045542]
[1741732772212,8.00698906,125.78,125.75,8.01415542]
[1741732772405,0.05488906,125.78,125.75,0.06045542]
[1741732773707,8.00698906,125.78,125.75,8.01375542]
[1741732773910,0.05488906,125.78,125.75,8.01375542]
[1741732774706,7.953,125.76,125.75,0.06045542]
[1741732775207,8.00698906,125.78,125.75,8.01385542]
[1741732775410,0.05488906,125.78,125.75,0.06045542]
[1741732776313,8.00718906,125.78,125.75,8.01375542]
[1741732776712,0.05488906,125.78,125.75,8.01375542]
[1741732776905,8.00698906,125.78,125.75,8.01375542]
[1741732777307,0.05488906,125.78,125.75,8.01375542]
[1741732777506,8.00698906,125.78,125.75,8.01375542]
[1741732777910,0.05488906,125.78,125.77,7.9524]
[1741732778711,7.9496,125.82,125.8,7.9503]
[1741732778906,20.48691499,125.84,125.8,7.9503]
[1741732779210,7.9493,125.82,125.77,29.96]
[1741732779410,20.48691499,125.84,125.78,7.9512]
[1741732779614,20.48691499,125.82,125.75,33.9845]
[1741732779808,20.53813756,125.8,125.77,0.05557614]
[1741732780013,29.96,125.79,125.77,0.05557614]
[1741732780210,7.9521,125.78,125.77,0.05557614]